fUST/lending_fUST_20250925
["ID","MTS","AMOUNT","RATE_DAILY","PERIOD"]
[387673180,1758804644374,-480.0,0.00023178,2]
[387673182,1758804644384,-171.96398701,0.00023178,2]
[387673184,1758804644394,-168.0,0.00023196,2]
[387673186,1758804644403,-657.13,0.00023287,2]
[387673189,1758804644413,-168.0,0.00023296,2]
[387673191,1758804644423,-549.0,0.00023348,2]
[387673192,1758804644432,-168.0,0.00023417,2]
[387673194,1758804644441,-480.0,0.00023446,2]
[387673197,1758804644451,-1859.68,0.00023448,2]
[387673198,1758804644460,-480.0,0.00023448,2]
[387673201,1758804644470,-367.0,0.00023449,2]
[387673203,1758804644479,-367.17504366,0.00023452,2]
[387673205,1758804644489,-480.0,0.00023452,2]
[387673207,1758804644498,-193.34,0.00023603,2]
[387673209,1758804644508,-988.322,0.00023607,4]
[387673211,1758804644518,-480.0,0.0002372,2]
[387673213,1758804644527,-1859.68,0.00023722,2]
[387673215,1758804644537,-480.0,0.00023722,2]
[387673217,1758804644550,-480.0,0.00023726,2]
[387673219,1758804644561,-549.0,0.00023969,2]
[387673221,1758804644570,-1859.68,0.00023996,2]
[387673223,1758804644581,-311.6,0.00023996,2]
[387673225,1758804644594,-480.0,0.00024,2]
[387673227,1758804644603,-800.0,0.00024152,2]
[387673229,1758804644613,-1859.68,0.0002427,2]
[387673231,1758804644625,-480.0,0.00024274,2]
[387673233,1758804644634,-622.69,0.000243,2]
[387673235,1758804644644,-948.0,0.00024438,2]
[387673237,1758804644654,-1859.68,0.00024544,2]
[387673239,1758804644663,-232.0,0.00024547,2]
[387673241,1758804644673,-539.77055159,0.00024548,2]
[387673243,1758804644683,-549.0,0.00024622,2]
[387673245,1758804644693,-172.4440612,0.000248,2]
[387673247,1758804644702,-1859.68,0.00024818,2]
[387673249,1758804644712,-448.41622022,0.0002489,2]
[387673251,1758804644722,-160.0,0.000249,7]
[387673253,1758804644731,-151.0,0.000249,7]
[387673255,1758804644742,-155.81474067,0.000249,7]
[387673258,1758804644751,-152.22216253,0.000249,7]
[387673259,1758804644760,-151.0,0.000249,7]
[387673261,1758804644770,-151.0,0.000249,7]
[387673263,1758804644782,-151.0,0.000249,7]
[387673266,1758804644792,-151.0,0.000249,7]
[387673268,1758804644801,-229.200683,0.000249,7]
[387673270,1758804644811,-229.866417,0.000249,7]
[387673272,1758804644820,-151.0,0.000249,7]
[387673274,1758804644830,-229.866417,0.000249,7]
[387673276,1758804644841,-151.0,0.000249,7]
[387673278,1758804644849,-188.944289,0.000249,7]
[387673280,1758804644858,-151.0,0.000249,7]
[387673282,1758804644867,-188.944289,0.000249,7]
[387673284,1758804644876,-151.0,0.000249,7]
[387673286,1758804644885,-188.944289,0.000249,7]
[387673288,1758804644894,-229.866417,0.000249,7]
[387673290,1758804644903,-188.944289,0.000249,7]
[387673292,1758804644912,-229.866417,0.000249,7]
[387673294,1758804644922,-202.158841,0.000249,7]
[387673296,1758804644931,-151.0,0.000249,7]
[387673298,1758804644940,-202.158841,0.000249,7]
[387673300,1758804644949,-151.0,0.000249,7]
[387673302,1758804644958,-202.158841,0.000249,7]
[387673304,1758804644967,-202.158841,0.000249,7]
[387673306,1758804644977,-151.0,0.000249,7]
[387673308,1758804644986,-151.0,0.000249,7]
[387673310,1758804644995,-151.0,0.000249,7]
[387673312,1758804645005,-176.130118,0.000249,7]
[387673314,1758804645015,-151.0,0.000249,7]
[387673316,1758804645025,-151.0,0.000249,7]
[387673318,1758804645034,-151.0,0.000249,7]
[387673320,1758804645043,-171.698201,0.000249,7]
[387673322,1758804645053,-151.0,0.000249,7]
[387673324,1758804645062,-151.0,0.000249,7]
[387673326,1758804645071,-151.0,0.000249,7]
[387673328,1758804645082,-151.0,0.000249,7]
[387673330,1758804645091,-161.444051,0.000249,7]
[387673332,1758804645102,-151.0,0.000249,7]
[387673334,1758804645111,-151.0,0.000249,7]
[387673337,1758804645124,-443.046888,0.000249,7]
[387673339,1758804645133,-151.0,0.000249,7]
[387673341,1758804645143,-443.046888,0.000249,7]
[387673343,1758804645152,-443.046888,0.000249,7]
[387673345,1758804645161,-151.0,0.000249,7]
[387673347,1758804645170,-443.046888,0.000249,7]
[387673349,1758804645179,-151.0,0.000249,7]
[387673351,1758804645188,-151.0,0.000249,7]
[387673353,1758804645198,-151.0,0.000249,7]
[387673355,1758804645207,-151.0,0.000249,7]
[387673357,1758804645216,-151.0,0.000249,7]
[387673359,1758804645225,-151.0,0.000249,7]
[387673361,1758804645235,-151.0,0.000249,7]
[387673363,1758804645244,-151.0,0.000249,7]
[387673365,1758804645254,-151.0,0.000249,7]
[387673367,1758804645263,-151.0,0.000249,7]
[387673369,1758804645273,-151.0,0.000249,7]
[387673371,1758804645282,-151.0,0.000249,7]
[387673373,1758804645291,-151.0,0.000249,7]
[387673375,1758804645300,-297.339303,0.000249,7]
[387673377,1758804645309,-151.0,0.000249,2]
[387673379,1758804645319,-151.0,0.000249,2]
[387673381,1758804645329,-151.0,0.000249,7]
[387673383,1758804645338,-151.0,0.000249,7]
[387673385,1758804645348,-151.0,0.000249,7]
[387673387,1758804645358,-151.0,0.000249,7]
[387673389,1758804645368,-151.0,0.000249,7]
[387673391,1758804645377,-151.0,0.000249,7]
[387673393,1758804645386,-151.0,0.000249,7]
[387673395,1758804645396,-151.0,0.000249,7]
[387673397,1758804645406,-151.0,0.000249,7]
[387673399,1758804645415,-161.567951,0.000249,7]
[387673401,1758804645425,-161.567951,0.000249,7]
[387673403,1758804645435,-161.567951,0.000249,7]
[387673405,1758804645444,-161.567951,0.000249,7]
[387673407,1758804645453,-207.73033,0.000249,7]
[387673409,1758804645462,-207.73033,0.000249,7]
[387673411,1758804645472,-151.0,0.000249,7]
[387673413,1758804645481,-207.73033,0.000249,7]
[387673415,1758804645491,-151.0,0.000249,7]
[387673417,1758804645500,-207.73033,0.000249,7]
[387673419,1758804645510,-151.0,0.000249,7]
[387673421,1758804645519,-151.0,0.000249,7]
[387673423,1758804645528,-198.87602421,0.000249,2]
[387673425,1758804645538,-151.0,0.000249,7]
[387673428,1758804645551,-151.0,0.000249,7]
[387673430,1758804645561,-151.0,0.000249,7]
[387673432,1758804645570,-151.0,0.000249,7]
[387673434,1758804645582,-151.0,0.000249,7]
[387673436,1758804645592,-151.0,0.000249,7]
[387673438,1758804645601,-151.0,0.000249,7]
[387673440,1758804645611,-151.0,0.000249,7]
[387673449,1758804645686,-151.0,0.000249,7]
[387673451,1758804645695,-634.481683,0.000249,7]
[387673454,1758804645705,-634.481683,0.000249,7]
[387673455,1758804645714,-634.481683,0.000249,7]
[387673457,1758804645724,-634.481683,0.000249,7]
[387673459,1758804645734,-151.0,0.000249,7]
[387673461,1758804645743,-151.0,0.000249,7]
[387673464,1758804645753,-151.0,0.000249,7]
[387673466,1758804645762,-151.0,0.000249,7]
[387673468,1758804645771,-151.0,0.000249,7]
[387673470,1758804645780,-151.0,0.000249,7]
[387673472,1758804645789,-151.0,0.000249,7]
[387673474,1758804645798,-151.0,0.000249,7]
[387673476,1758804645807,-151.0,0.000249,7]
[387673478,1758804645816,-151.0,0.000249,7]
[387673480,1758804645826,-151.0,0.000249,7]
[387673482,1758804645836,-151.0,0.000249,7]
[387673484,1758804645845,-151.0,0.000249,7]
[387673486,1758804645855,-151.0,0.000249,7]
[387673488,1758804645864,-277982.3065722,0.000249,2]
[387673497,1758804645938,-14329.0147818,0.000249,2]
[387673499,1758804645947,-151.0,0.000249,2]
[387673501,1758804645957,-500.0,0.000249,2]
[387673503,1758804645966,-151.0,0.000249,2]
[387673505,1758804645976,-151.0,0.000249,2]
[387673507,1758804645986,-151.0,0.000249,7]
[387673509,1758804645995,-151.0,0.000249,2]
[387673511,1758804646004,-151.0,0.000249,2]
[387673513,1758804646013,-151.0,0.000249,2]
[387673515,1758804646022,-151.0,0.000249,2]
[387673517,1758804646031,-151.0,0.000249,7]
[387673519,1758804646041,-151.0,0.000249,2]
[387673521,1758804646050,-151.0,0.000249,7]
[387673523,1758804646059,-151.0,0.000249,2]
[387673525,1758804646069,-151.0,0.000249,7]
[387673527,1758804646079,-151.0,0.000249,7]
[387673529,1758804646089,-151.0,0.000249,7]
[387673531,1758804646098,-151.0,0.000249,7]
[387673533,1758804646107,-151.0,0.000249,7]
[387673534,1758804646117,-151.0,0.000249,7]
[387673537,1758804646126,-151.0,0.000249,7]
[387673539,1758804646136,-151.0,0.000249,7]
[387673542,1758804646145,-151.0,0.000249,7]
[387673544,1758804646155,-155.907333,0.000249,7]
[387673547,1758804646168,-151.0,0.000249,7]
[387673549,1758804646184,-151.422777,0.000249,7]
[387673551,1758804646197,-151.0,0.000249,7]
[387673553,1758804646207,-151.0,0.000249,7]
[387673555,1758804646216,-600.840889,0.000249,7]
[387673559,1758804646226,-151.0,0.000249,7]
[387673561,1758804646235,-600.840889,0.000249,7]
[387673563,1758804646248,-152.231449,0.000249,7]
[387673566,1758804646263,-600.840889,0.000249,7]
[387673568,1758804646277,-600.840889,0.000249,7]
[387673571,1758804646290,-151.0,0.000249,2]
[387673573,1758804646305,-246.33756732,0.000249,2]
[387673576,1758804646322,-151.0,0.000249,2]
[387673579,1758804646338,-151.0,0.000249,2]
[387673581,1758804646355,-404.152992,0.000249,7]
[387673584,1758804646368,-500.0,0.000249,2]
[387673586,1758804646381,-151.0,0.000249,7]
[387673588,1758804646394,-151.0,0.000249,2]
[387673591,1758804646409,-404.152992,0.000249,7]
[387673594,1758804646423,-151.0,0.000249,7]
[387673596,1758804646435,-404.152992,0.000249,7]
[387673598,1758804646447,-404.152992,0.000249,7]
[387673601,1758804646461,-151.0,0.000249,7]
[387673603,1758804646475,-151.0,0.000249,7]
[387673606,1758804646491,-834.480255,0.000249,7]
[387673608,1758804646506,-834.480255,0.000249,7]
[387673611,1758804646521,-834.480255,0.000249,7]
[387673613,1758804646532,-834.480255,0.000249,7]
[387673616,1758804646544,-151.0,0.000249,7]
[387673618,1758804646562,-151.0,0.000249,7]
[387673621,1758804646578,-151.0,0.000249,7]
[387673623,1758804646591,-151.0,0.000249,7]
[387673625,1758804646604,-151.0,0.000249,7]
[387673628,1758804646617,-151.0,0.000249,7]
[387673630,1758804646629,-151.0,0.000249,7]
[387673632,1758804646641,-151.0,0.000249,7]
[387673634,1758804646653,-151.0,0.000249,7]
[387673637,1758804646666,-151.0,0.000249,7]
[387673639,1758804646678,-151.0,0.000249,7]
[387673641,1758804646691,-151.0,0.000249,7]
[387673644,1758804646703,-151.0,0.000249,7]
[387673646,1758804646716,-151.0,0.000249,7]
[387673648,1758804646728,-151.0,0.000249,7]
[387673651,1758804646741,-151.0,0.000249,7]
[387673653,1758804646753,-151.0,0.000249,7]
[387673655,1758804646765,-151.0,0.000249,7]
[387673658,1758804646778,-151.0,0.000249,7]
[387673660,1758804646790,-151.0,0.000249,7]
[387673662,1758804646803,-549.0,0.00024918,2]
[387673665,1758804646815,-4070.0091408,0.00024924,2]
[387673667,1758804646825,-4036.11849085,0.0002501,5]
[387673669,1758804646836,-835.0,0.00025047,2]
[387673671,1758804646845,-1859.68,0.00025092,2]
[387673673,1758804646855,-1000.0,0.000251,2]
[387673675,1758804646864,-2066.39397938,0.00025121,5]
[387673677,1758804646874,-549.0,0.00025163,2]
[387673678,1758804646883,-151.0,0.00025174,7]
[387673679,1758804646893,-151.0,0.00025174,7]
[387673680,1758804646902,-151.0,0.00025174,7]
[387673681,1758804646911,-151.0,0.00025174,2]
[387673682,1758804646921,-199.43614688,0.00025174,2]
[387673683,1758804646931,-500.0,0.00025174,2]
[387673684,1758804646940,-151.0,0.00025174,2]
[387673685,1758804646949,-151.0,0.00025174,2]
[387673686,1758804646958,-246.90162727,0.00025174,2]
[387673687,1758804646967,-247.14406961,0.00025174,2]
[387673688,1758804646976,-500.0,0.00025174,2]
[387673689,1758804646985,-151.0,0.00025174,2]
[387673690,1758804646995,-179.64071856,0.00025176,2]
[387673692,1758804647004,-657.13,0.00025205,4]
[387673694,1758804647014,-835.0,0.00025245,2]
[387673710,1758804647023,-800.0,0.00025248,2]
[387673713,1758804647182,-650.0,0.000253,2]
[387673715,1758804647192,-1859.68,0.00025366,2]
[387673717,1758804647202,-549.0,0.00025367,2]
[387673719,1758804647211,-230.0,0.00025434,2]
[387673721,1758804647221,-151.0,0.00025448,7]
[387673723,1758804647231,-151.0,0.00025448,2]
[387673725,1758804647241,-500.0,0.00025448,2]
[387673727,1758804647250,-151.0,0.00025448,2]
[387673729,1758804647259,-169.92557554,0.00025448,2]
[387673731,1758804647269,-270.67,0.00025491,2]
[387673733,1758804647279,-2387.78104617,0.0002556,2]
[387673735,1758804647291,-1000.0,0.000256,2]
[387673737,1758804647300,-1859.84,0.0002564,2]
[387673739,1758804647310,-216.50486762,0.0002566,2]
[387673741,1758804647319,-458770.41061953,0.0002566,2]
[387673762,1758804647514,-500.0,0.00019336,2]
[387673764,1758804647524,-400.0,0.00019336,2]
[387673766,1758804647533,-480.0,0.00019342,2]
[387673768,1758804647543,-600.85,0.00019616,2]
[387673770,1758804647556,-1001.4,0.000229,2]
[387673772,1758804647565,-702.20241774,0.00023174,2]
[387673775,1758804647583,-299.19758226,0.00023174,2]
[387673777,1758804647592,-480.0,0.00023178,2]
[387673779,1758804647602,-1001.4,0.00023448,2]
[387673781,1758804647611,-480.0,0.00023452,2]
[387673783,1758804647621,-1001.4,0.00023722,2]
[387673785,1758804647630,-480.0,0.00023726,2]
[387673787,1758804647640,-480.0,0.00024,2]
[387673789,1758804647649,-480.0,0.00024274,2]
[387673791,1758804647658,-480.0,0.00024548,2]
[387673792,1758804647668,-480.0,0.00024822,2]
[387673795,1758804647678,-151.0,0.000249,7]
[387673796,1758804647687,-560.31,0.00025096,2]
[387673799,1758804647697,-122298.61142232,0.0002566,2]
[387673800,1758804647706,-151.0,0.0002566,3]
[387673802,1758804647716,-151.0,0.0002566,3]
[387673804,1758804647726,-159.97914963,0.0002566,3]
[387673806,1758804647735,-166.0,0.0002566,3]
[387673808,1758804647744,-166.0,0.0002566,3]
[387673810,1758804647754,-166.0,0.0002566,3]
[387673812,1758804647763,-166.0,0.0002566,3]
[387673814,1758804647772,-172.0,0.0002566,3]
[387673816,1758804647782,-174.0,0.0002566,3]
[387673819,1758804647793,-174.0,0.0002566,3]
[387673820,1758804647803,-174.0,0.0002566,3]
[387673822,1758804647813,-174.0,0.0002566,3]
[387673824,1758804647822,-177.81496533,0.0002566,3]
[387673826,1758804647833,-162.0,0.0002566,3]
[387673828,1758804647842,-162.0,0.0002566,3]
[387673830,1758804647852,-162.0,0.0002566,3]
[387673832,1758804647862,-162.0,0.0002566,3]
[387673834,1758804647871,-162.0,0.0002566,3]
[387673837,1758804647882,-162.0,0.0002566,3]
[387673838,1758804647892,-162.0,0.0002566,3]
[387673840,1758804647905,-151.26263461,0.0002566,3]
[387673842,1758804647914,-204.54044943,0.0002566,3]
[387673844,1758804647924,-156.0,0.0002566,3]
[387673847,1758804647935,-156.0,0.0002566,3]
[387673848,1758804647944,-156.0,0.0002566,3]
[387673850,1758804647954,-156.0,0.0002566,3]
[387673853,1758804647964,-162.98096703,0.0002566,3]
[387673854,1758804647973,-328.0,0.0002566,3]
[387673856,1758804647983,-328.0,0.0002566,3]
[387673858,1758804647993,-328.0,0.0002566,3]
[387673860,1758804648003,-328.0,0.0002566,3]
[387673862,1758804648012,-328.0,0.0002566,3]
[387673864,1758804648022,-328.0,0.0002566,3]
[387673866,1758804648031,-328.0,0.0002566,3]
[387673868,1758804648040,-328.0,0.0002566,3]
[387673870,1758804648050,-328.0,0.0002566,3]
[387673872,1758804648060,-328.0,0.0002566,3]
[387673874,1758804648069,-328.0,0.0002566,3]
[387673876,1758804648081,-328.0,0.0002566,3]
[387673878,1758804648091,-328.0,0.0002566,3]
[387673880,1758804648101,-328.0,0.0002566,3]
[387673882,1758804648111,-328.0,0.0002566,3]
[387673884,1758804648121,-236.00382883,0.0002566,3]
[387673886,1758804648131,-151.0,0.0002566,7]
[387673888,1758804648140,-151.0,0.0002566,7]
[387673890,1758804648151,-151.0,0.0002566,7]
[387673892,1758804648161,-151.0,0.0002566,7]
[387673893,1758804648170,-152.570141,0.0002566,7]
[387673895,1758804648180,-151.0,0.0002566,7]
[387673897,1758804648190,-151.0,0.0002566,7]
[387673899,1758804648199,-151.0,0.0002566,7]
[387673901,1758804648209,-151.498244,0.0002566,7]
[387673903,1758804648218,-151.0,0.0002566,7]
[387673905,1758804648228,-151.0,0.0002566,7]
[387673907,1758804648237,-250.129471,0.0002566,7]
[387673909,1758804648246,-151.0,0.0002566,7]
[387673911,1758804648255,-151.0,0.0002566,7]
[387673913,1758804648265,-151.0,0.0002566,7]
[387673915,1758804648274,-151.0,0.0002566,7]
[387673917,1758804648283,-188.695343,0.0002566,7]
[387673919,1758804648293,-188.695343,0.0002566,7]
[387673921,1758804648303,-152.333578,0.0002566,7]
[387673923,1758804648312,-188.695343,0.0002566,7]
[387673924,1758804648322,-188.695343,0.0002566,7]
[387673926,1758804648335,-151.0,0.0002566,7]
[387673928,1758804648344,-151.0,0.0002566,7]
[387673930,1758804648354,-151.0,0.0002566,7]
[387673932,1758804648364,-151.0,0.0002566,7]
[387673934,1758804648373,-151.0,0.0002566,7]
[387673936,1758804648382,-151.0,0.0002566,7]
[387673938,1758804648392,-151.0,0.0002566,7]
[387673940,1758804648402,-151.0,0.0002566,7]
[387673942,1758804648412,-151.0,0.0002566,7]
[387673944,1758804648422,-151.0,0.0002566,7]
[387673946,1758804648432,-285.863933,0.0002566,7]
[387673947,1758804648442,-229.866417,0.0002566,7]
[387673948,1758804648453,-151.0,0.0002566,7]
[387673949,1758804648463,-188.944289,0.0002566,7]
[387673950,1758804648473,-151.0,0.0002566,7]
[387673951,1758804648483,-188.944289,0.0002566,7]
[387673952,1758804648494,-229.866417,0.0002566,7]
[387673953,1758804648504,-151.0,0.0002566,7]
[387673954,1758804648514,-188.944289,0.0002566,7]
[387673955,1758804648524,-229.866417,0.0002566,7]
[387673956,1758804648534,-188.944289,0.0002566,7]
[387673957,1758804648548,-229.866417,0.0002566,7]
[387673958,1758804648568,-202.158841,0.0002566,7]
[387673959,1758804648580,-151.0,0.0002566,7]
[387673960,1758804648590,-202.158841,0.0002566,7]
[387673961,1758804648600,-151.0,0.0002566,7]
[387673962,1758804648610,-202.158841,0.0002566,7]
[387673963,1758804648620,-202.158841,0.0002566,7]
[387673964,1758804648630,-151.0,0.0002566,7]
[387673965,1758804648640,-151.0,0.0002566,7]
[387673966,1758804648651,-151.0,0.0002566,7]
[387673967,1758804648660,-151.0,0.0002566,7]
[387673968,1758804648670,-151.0,0.0002566,7]
[387673969,1758804648680,-162.39063,0.0002566,7]
[387673970,1758804648689,-151.0,0.0002566,7]
[387673971,1758804648699,-151.0,0.0002566,7]
[387673972,1758804648708,-151.0,0.0002566,7]
[387673973,1758804648718,-151.0,0.0002566,7]
[387673974,1758804648727,-151.0,0.0002566,7]
[387673975,1758804648737,-151.0,0.0002566,7]
[387673976,1758804648747,-443.046888,0.0002566,7]
[387673977,1758804648757,-153.75635,0.0002566,7]
[387673978,1758804648768,-443.046888,0.0002566,7]
[387673979,1758804648777,-443.046888,0.0002566,7]
[387673980,1758804648787,-151.0,0.0002566,7]
[387673981,1758804648797,-443.046888,0.0002566,7]
[387673982,1758804648808,-177.001794,0.0002566,7]
[387673983,1758804648817,-151.0,0.0002566,7]
[387673984,1758804648828,-151.1,0.0002566,7]
[387673985,1758804648837,-151.0,0.0002566,7]
[387673986,1758804648847,-151.0,0.0002566,7]
[387673987,1758804648857,-158.97483,0.0002566,7]
[387673988,1758804648867,-151.0,0.0002566,7]
[387673989,1758804648876,-151.0,0.0002566,7]
[387673990,1758804648886,-151.0,0.0002566,7]
[387673991,1758804648896,-151.0,0.0002566,7]
[387673992,1758804648906,-151.0,0.0002566,7]
[387673993,1758804648916,-151.0,0.0002566,7]
[387673994,1758804648925,-151.0,0.0002566,7]
[387673995,1758804648935,-151.0,0.0002566,7]
[387673996,1758804648944,-151.0,0.0002566,7]
[387673997,1758804648954,-151.0,0.0002566,7]
[387673998,1758804648964,-151.0,0.0002566,7]
[387673999,1758804648973,-151.0,0.0002566,7]
[387674000,1758804648982,-222.63277,0.0002566,7]
[387674002,1758804648992,-151.0,0.0002566,7]
[387674004,1758804649001,-161.567951,0.0002566,7]
[387674006,1758804649011,-161.567951,0.0002566,7]
[387674008,1758804649021,-161.567951,0.0002566,7]
[387674009,1758804649031,-161.567951,0.0002566,7]
[387674011,1758804649040,-207.73033,0.0002566,7]
[387674013,1758804649050,-207.73033,0.0002566,7]
[387674015,1758804649059,-151.0,0.0002566,7]
[387674016,1758804649069,-207.73033,0.0002566,7]
[387674017,1758804649081,-151.0,0.0002566,7]
[387674018,1758804649090,-207.73033,0.0002566,7]
[387674019,1758804649099,-328.0,0.0002566,3]
[387674020,1758804649111,-328.0,0.0002566,3]
[387674021,1758804649120,-328.0,0.0002566,3]
[387674022,1758804649130,-328.0,0.0002566,3]
[387674023,1758804649139,-328.0,0.0002566,3]
[387674024,1758804649149,-328.0,0.0002566,3]
[387674025,1758804649159,-328.0,0.0002566,3]
[387674026,1758804649168,-328.0,0.0002566,3]
[387674027,1758804649177,-328.0,0.0002566,3]
[387674028,1758804649186,-328.0,0.0002566,3]
[387674029,1758804649196,-471.07651104,0.0002566,3]
[387674030,1758804649205,-151.0,0.0002566,7]
[387674031,1758804649214,-151.0,0.0002566,7]
[387674032,1758804649223,-151.0,0.0002566,7]
[387674033,1758804649233,-151.0,0.0002566,7]
[387674034,1758804649242,-151.0,0.0002566,7]
[387674035,1758804649252,-151.0,0.0002566,7]
[387674036,1758804649262,-151.0,0.0002566,7]
[387674037,1758804649271,-151.0,0.0002566,7]
[387674038,1758804649280,-151.0,0.0002566,7]
[387674039,1758804649290,-161.371641,0.0002566,7]
[387674040,1758804649299,-151.946875,0.0002566,7]
[387674041,1758804649309,-634.481683,0.0002566,7]
[387674042,1758804649318,-634.481683,0.0002566,7]
[387674043,1758804649331,-634.481683,0.0002566,7]
[387674044,1758804649340,-634.481683,0.0002566,7]
[387674045,1758804649350,-151.0,0.0002566,7]
[387674046,1758804649360,-151.0,0.0002566,7]
[387674047,1758804649370,-151.0,0.0002566,7]
[387674048,1758804649380,-151.0,0.0002566,7]
[387674049,1758804649389,-151.0,0.0002566,7]
[387674050,1758804649399,-151.0,0.0002566,7]
[387674051,1758804649408,-151.0,0.0002566,7]
[387674052,1758804649418,-151.0,0.0002566,7]
[387674053,1758804649428,-151.0,0.0002566,7]
[387674054,1758804649438,-151.0,0.0002566,7]
[387674055,1758804649447,-151.0,0.0002566,7]
[387674056,1758804649457,-151.0,0.0002566,7]
[387674057,1758804649467,-151.0,0.0002566,7]
[387674059,1758804649477,-151.0,0.0002566,7]
[387674060,1758804649491,-151.673991,0.0002566,7]
[387674061,1758804649501,-151.0,0.0002566,7]
[387674062,1758804649511,-151.0,0.0002566,7]
[387674064,1758804649520,-151.0,0.0002566,7]
[387674065,1758804649530,-151.0,0.0002566,7]
[387674066,1758804649540,-156.454928,0.0002566,7]
[387674067,1758804649554,-151.0,0.0002566,7]
[387674068,1758804649564,-151.0,0.0002566,7]
[387674069,1758804649574,-257.350944,0.0002566,7]
[387674070,1758804649584,-151.0,0.0002566,7]
[387674071,1758804649594,-151.0,0.0002566,7]
[387674072,1758804649604,-297.120288,0.0002566,7]
[387674073,1758804649614,-151.0,0.0002566,7]
[387674074,1758804649624,-151.0,0.0002566,7]
[387674075,1758804649634,-600.840889,0.0002566,7]
[387674076,1758804649644,-151.0,0.0002566,7]
[387674077,1758804649654,-600.840889,0.0002566,7]
[387674078,1758804649663,-600.840889,0.0002566,7]
[387674079,1758804649673,-600.840889,0.0002566,7]
[387674080,1758804649684,-404.152992,0.0002566,7]
[387674081,1758804649694,-151.0,0.0002566,7]
[387674082,1758804649704,-404.152992,0.0002566,7]
[387674083,1758804649714,-151.0,0.0002566,7]
[387674084,1758804649723,-404.152992,0.0002566,7]
[387674085,1758804649734,-404.152992,0.0002566,7]
[387674086,1758804649743,-151.0,0.0002566,7]
[387674087,1758804649753,-151.0,0.0002566,7]
[387674088,1758804649836,-834.480255,0.0002566,7]
[387674089,1758804649863,-834.480255,0.0002566,7]
[387674090,1758804649873,-834.480255,0.0002566,7]
[387674091,1758804649883,-834.480255,0.0002566,7]
[387674092,1758804649892,-151.0,0.0002566,7]
[387674093,1758804649902,-151.0,0.0002566,7]
[387674094,1758804649912,-151.0,0.0002566,7]
[387674095,1758804649922,-151.0,0.0002566,7]
[387674096,1758804649931,-151.0,0.0002566,7]
[387674097,1758804649941,-151.0,0.0002566,7]
[387674098,1758804649951,-151.0,0.0002566,7]
[387674099,1758804649960,-151.0,0.0002566,7]
[387674100,1758804649970,-151.0,0.0002566,7]
[387674101,1758804649979,-151.0,0.0002566,7]